[Event "Early-Titled-Tuesday-Blitz-November-28-2023"]
[Site "Chess.com"]
[Date "2023.11.28"]
[Round "7"]
[White "Iskusnyh"]
[Black "Abund"]
[Result "0-1"]
[WhiteElo "2558"]
[BlackElo "2778"]
[TimeControl "180+1"]
[EndTime "9:25:46 PST"]
[Termination "Abund won on time"]

1. d4 {[%clk 0:03:00.9]} 1... Nf6 {[%clk 0:02:59.7]} 2. c4 {[%clk 0:03:00.3]}
2... e6 {[%clk 0:03:00.3]} 3. g3 {[%clk 0:03:00.2]} 3... d5 {[%clk 0:03:00.4]}
4. Bg2 {[%clk 0:02:59.9]} 4... dxc4 {[%clk 0:03:01]} 5. Nf3 {[%clk 0:02:59.6]}
5... c5 {[%clk 0:03:01.1]} 6. O-O {[%clk 0:02:57.7]} 6... Nc6 {[%clk 0:03:01.2]}
7. Na3 {[%clk 0:02:57.1]} 7... cxd4 {[%clk 0:02:59.9]} 8. Nxc4 {[%clk
0:02:56.6]} 8... Bc5 {[%clk 0:03:00.6]} 9. a3 {[%clk 0:02:54.4]} 9... a5 {[%clk
0:03:00.9]} 10. Bf4 {[%clk 0:02:49]} 10... Nd5 {[%clk 0:02:55]} 11. Rc1 {[%clk
0:02:41.3]} 11... Nxf4 {[%clk 0:02:45.1]} 12. gxf4 {[%clk 0:02:42.2]} 12... O-O
{[%clk 0:02:36.8]} 13. Qd3 {[%clk 0:02:32]} 13... Bd7 {[%clk 0:02:24.6]} 14.
Rfd1 {[%clk 0:02:17.6]} 14... Qe7 {[%clk 0:02:05]} 15. Nfe5 {[%clk 0:01:51.6]}
15... Rfc8 {[%clk 0:01:42.3]} 16. Nxd7 {[%clk 0:01:47.4]} 16... Qxd7 {[%clk
0:01:42.5]} 17. Qb3 {[%clk 0:01:10.9]} 17... Qc7 {[%clk 0:01:21.9]} 18. Qg3
{[%clk 0:00:53.9]} 18... g6 {[%clk 0:01:14.8]} 19. Bf3 {[%clk 0:00:48]} 19...
Rab8 {[%clk 0:00:54.8]} 20. h4 {[%clk 0:00:46.7]} 20... b5 {[%clk 0:00:50.3]}
21. Ne5 {[%clk 0:00:40.1]} 21... Nxe5 {[%clk 0:00:48.2]} 22. fxe5 {[%clk
0:00:37.4]} 22... Qe7 {[%clk 0:00:43.5]} 23. h5 {[%clk 0:00:35.2]} 23... Kg7
{[%clk 0:00:43.4]} 24. Kg2 {[%clk 0:00:34.9]} 24... Bb6 {[%clk 0:00:37.2]} 25.
Qf4 {[%clk 0:00:26]} 25... g5 {[%clk 0:00:32.7]} 26. Qe4 {[%clk 0:00:25.4]}
26... h6 {[%clk 0:00:32.5]} 27. Rc6 {[%clk 0:00:22.6]} 27... Rxc6 {[%clk
0:00:24.3]} 28. Qxc6 {[%clk 0:00:22.4]} 28... Qc7 {[%clk 0:00:20.9]} 29. Rc1
{[%clk 0:00:21]} 29... Qxe5 {[%clk 0:00:19.8]} 30. Qd7 {[%clk 0:00:16]} 30...
Rd8 {[%clk 0:00:18.4]} 31. Qb7 {[%clk 0:00:15.3]} 31... Rb8 {[%clk 0:00:09.9]}
32. Qc6 {[%clk 0:00:11.6]} 32... b4 {[%clk 0:00:09.5]} 33. a4 {[%clk 0:00:10.8]}
33... d3 {[%clk 0:00:09.7]} 34. exd3 {[%clk 0:00:10.1]} 34... Qxb2 {[%clk
0:00:10]} 35. Rf1 {[%clk 0:00:08.6]} 35... Qd4 {[%clk 0:00:09.9]} 36. Be4 {[%clk
0:00:07.4]} 36... Rd8 {[%clk 0:00:10]} 37. Qb7 {[%clk 0:00:07]} 37... Rd7 {[%clk
0:00:09.8]} 38. Qc8 {[%clk 0:00:06.8]} 38... Rc7 {[%clk 0:00:10.2]} 39. Qe8
{[%clk 0:00:06.1]} 39... Rc2 {[%clk 0:00:10.1]} 40. Bg6 {[%clk 0:00:02.8]} 40...
Rxf2+ {[%clk 0:00:10.1]} 41. Rxf2 {[%clk 0:00:03.1]} 41... Qxf2+ {[%clk
0:00:11]} 42. Kh3 {[%clk 0:00:03.6]} 42... Qf3+ {[%clk 0:00:11.5]} 43. Kh2
{[%clk 0:00:02.1]} 43... Qf2+ {[%clk 0:00:09.8]} 44. Kh3 {[%clk 0:00:02.2]}
44... Qf1+ {[%clk 0:00:10.3]} 45. Kg3 {[%clk 0:00:01.2]} 45... Bf2+ {[%clk
0:00:08.8]} 46. Kf3 {[%clk 0:00:01.3]} 46... Bd4+ {[%clk 0:00:08.7]} 47. Kg3
{[%clk 0:00:01.1]} 47... Qf2+ {[%clk 0:00:08]} 0-1

[Event "Early-Titled-Tuesday-Blitz-November-28-2023"]
[Site "Chess.com"]
[Date "2023.11.28"]
[Round "7"]
[White "TimGrutter03"]
[Black "Qvalda"]
[Result "0-1"]
[WhiteElo "2565"]
[BlackElo "2436"]
[TimeControl "180+1"]
[EndTime "9:25:48 PST"]
[Termination "Qvalda won on time"]

1. b3 {[%clk 0:03:00.9]} 1... e5 {[%clk 0:02:54.8]} 2. Bb2 {[%clk 0:03:01.4]}
2... Nc6 {[%clk 0:02:54.5]} 3. e3 {[%clk 0:03:01.3]} 3... d5 {[%clk 0:02:54.7]}
4. Bb5 {[%clk 0:03:00.8]} 4... Ne7 {[%clk 0:02:55]} 5. Nf3 {[%clk 0:03:00.6]}
5... e4 {[%clk 0:02:48.1]} 6. Ne5 {[%clk 0:02:59.7]} 6... a6 {[%clk 0:02:46.5]}
7. Nxc6 {[%clk 0:02:59.6]} 7... Nxc6 {[%clk 0:02:44.9]} 8. Bxc6+ {[%clk
0:02:58.5]} 8... bxc6 {[%clk 0:02:45.8]} 9. d3 {[%clk 0:02:48.5]} 9... Qg5
{[%clk 0:02:35.3]} 10. Kf1 {[%clk 0:02:06.8]} 10... f5 {[%clk 0:02:26]} 11. h4
{[%clk 0:02:01.2]} 11... Qg6 {[%clk 0:02:17.7]} 12. h5 {[%clk 0:01:57.2]} 12...
Qh6 {[%clk 0:02:11.2]} 13. Nc3 {[%clk 0:01:36.8]} 13... Bd6 {[%clk 0:02:07.3]}
14. Kg1 {[%clk 0:01:24.6]} 14... O-O {[%clk 0:02:02.4]} 15. dxe4 {[%clk
0:01:23.8]} 15... fxe4 {[%clk 0:02:03.3]} 16. Qd4 {[%clk 0:01:17]} 16... Be6
{[%clk 0:01:52.6]} 17. Na4 {[%clk 0:01:00.4]} 17... Rf7 {[%clk 0:01:39.8]} 18.
Nc5 {[%clk 0:00:47.3]} 18... Bxc5 {[%clk 0:01:39.4]} 19. Qxc5 {[%clk 0:00:48.2]}
19... Raf8 {[%clk 0:01:39.2]} 20. Rf1 {[%clk 0:00:47.6]} 20... Bg4 {[%clk
0:01:29]} 21. Qd4 {[%clk 0:00:30.2]} 21... Be2 {[%clk 0:01:20.9]} 22. Ba3 {[%clk
0:00:30.5]} 22... Bxf1 {[%clk 0:00:32.8]} 23. Bxf8 {[%clk 0:00:30.1]} 23... Be2
{[%clk 0:00:26.4]} 24. Bb4 {[%clk 0:00:25.1]} 24... Qg5 {[%clk 0:00:23.2]} 25.
h6 {[%clk 0:00:18.7]} 25... Bf3 {[%clk 0:00:13.7]} 26. Rh2 {[%clk 0:00:18.9]}
26... gxh6 {[%clk 0:00:12.3]} 27. Bc3 {[%clk 0:00:17.8]} 27... Kf8 {[%clk
0:00:02.7]} 28. Qh8+ {[%clk 0:00:09.9]} 28... Ke7 {[%clk 0:00:02.9]} 29. Bb4+
{[%clk 0:00:09.8]} 29... Kd7 {[%clk 0:00:03.3]} 30. Bc3 {[%clk 0:00:03.4]} 30...
Qg6 {[%clk 0:00:02.5]} 31. Qd4 {[%clk 0:00:03.1]} 31... Bg4 {[%clk 0:00:02.1]}
32. Qe5 {[%clk 0:00:02.5]} 32... Be6 {[%clk 0:00:02.2]} 33. Be1 {[%clk
0:00:01.2]} 33... Rf5 {[%clk 0:00:02.2]} 34. Qd4 {[%clk 0:00:01.4]} 34... Qf6
{[%clk 0:00:02.1]} 35. Qxf6 {[%clk 0:00:01.2]} 35... Rxf6 {[%clk 0:00:03]} 36.
f3 {[%clk 0:00:01.7]} 36... Rg6 {[%clk 0:00:03.4]} 37. g4 {[%clk 0:00:01.3]}
37... exf3 {[%clk 0:00:03.5]} 38. Kf2 {[%clk 0:00:02]} 38... Rxg4 {[%clk
0:00:03.9]} 39. Kxf3 {[%clk 0:00:02.2]} 39... Rg6 {[%clk 0:00:04.8]} 40. Bg3
{[%clk 0:00:02.3]} 40... Rf6+ {[%clk 0:00:05.3]} 41. Bf4 {[%clk 0:00:02.9]}
41... Bf5 {[%clk 0:00:05.6]} 42. c3 {[%clk 0:00:03.2]} 42... Be4+ {[%clk
0:00:06]} 43. Kf2 {[%clk 0:00:03.9]} 43... Bg6 {[%clk 0:00:05.7]} 44. Rxh6
{[%clk 0:00:04]} 44... c5 {[%clk 0:00:06]} 45. Rh4 {[%clk 0:00:04.1]} 45... Kc6
{[%clk 0:00:06.2]} 46. Ke1 {[%clk 0:00:04.4]} 46... a5 {[%clk 0:00:06.6]} 47.
Kd2 {[%clk 0:00:04.9]} 47... Re6 {[%clk 0:00:07]} 48. Rh2 {[%clk 0:00:04.4]}
48... a4 {[%clk 0:00:07.4]} 49. bxa4 {[%clk 0:00:04.4]} 49... Re4 {[%clk
0:00:07.7]} 50. a5 {[%clk 0:00:04.2]} 50... Ra4 {[%clk 0:00:08.1]} 51. Kc1
{[%clk 0:00:03.1]} 51... Rxa5 {[%clk 0:00:08.4]} 52. Kb2 {[%clk 0:00:03.8]}
52... Rb5+ {[%clk 0:00:08.7]} 53. Ka3 {[%clk 0:00:02.4]} 53... Rb8 {[%clk
0:00:08.2]} 54. Rf2 {[%clk 0:00:01.5]} 54... Kb5 {[%clk 0:00:07.9]} 55. Bg3
{[%clk 0:00:01.1]} 55... Kc4 {[%clk 0:00:07.8]} 0-1

[Event "Early-Titled-Tuesday-Blitz-November-28-2023"]
[Site "Chess.com"]
[Date "2023.11.28"]
[Round "7"]
[White "HajiyevKanan"]
[Black "marvinguevara"]
[Result "1/2-1/2"]
[WhiteElo "2498"]
[BlackElo "2185"]
[TimeControl "180+1"]
[EndTime "9:25:48 PST"]
[Termination "Game drawn by repetition"]

1. b3 {[%clk 0:03:00.9]} 1... e5 {[%clk 0:02:58.7]} 2. Bb2 {[%clk 0:03:01.7]}
2... Nc6 {[%clk 0:02:57.5]} 3. Nf3 {[%clk 0:03:01.5]} 3... d6 {[%clk 0:02:56.7]}
4. d4 {[%clk 0:03:01.3]} 4... exd4 {[%clk 0:02:56.3]} 5. Nxd4 {[%clk 0:03:02.2]}
5... Nf6 {[%clk 0:02:56]} 6. e3 {[%clk 0:02:59.6]} 6... Be7 {[%clk 0:02:55.8]}
7. Bb5 {[%clk 0:02:59.6]} 7... Bd7 {[%clk 0:02:55.6]} 8. O-O {[%clk 0:02:54.8]}
8... Nxd4 {[%clk 0:02:55.4]} 9. Bxd7+ {[%clk 0:02:54.1]} 9... Qxd7 {[%clk
0:02:56.3]} 10. Qxd4 {[%clk 0:02:54.1]} 10... O-O {[%clk 0:02:55.9]} 11. c4
{[%clk 0:02:54.1]} 11... c5 {[%clk 0:02:51.2]} 12. Qd3 {[%clk 0:02:51.4]} 12...
d5 {[%clk 0:02:43.5]} 13. Rd1 {[%clk 0:02:45.1]} 13... Rfd8 {[%clk 0:02:40.9]}
14. cxd5 {[%clk 0:02:15.4]} 14... Qxd5 {[%clk 0:02:36.9]} 15. Qxd5 {[%clk
0:02:11.7]} 15... Nxd5 {[%clk 0:02:37.4]} 16. Nc3 {[%clk 0:02:04.9]} 16... Nb4
{[%clk 0:02:36]} 17. Ne4 {[%clk 0:02:00]} 17... f5 {[%clk 0:02:23.1]} 18. Nc3
{[%clk 0:01:46]} 18... Bf6 {[%clk 0:02:20.9]} 19. Na4 {[%clk 0:01:25.7]} 19...
Bxb2 {[%clk 0:02:15.7]} 20. Nxb2 {[%clk 0:01:26.4]} 20... Kf7 {[%clk 0:02:10.3]}
21. Nc4 {[%clk 0:01:17.4]} 21... Ke6 {[%clk 0:02:06.6]} 22. a3 {[%clk 0:01:10]}
22... Nd5 {[%clk 0:02:04.9]} 23. Kf1 {[%clk 0:01:03]} 23... Nc3 {[%clk
0:02:04.4]} 24. Rxd8 {[%clk 0:00:57.5]} 24... Rxd8 {[%clk 0:02:03.1]} 25. Rc1
{[%clk 0:00:58.4]} 25... Ne4 {[%clk 0:01:59.8]} 26. f3 {[%clk 0:00:51.2]} 26...
Nd2+ {[%clk 0:01:44.9]} 27. Ke2 {[%clk 0:00:51.1]} 27... Nxc4 {[%clk 0:01:44.3]}
28. Rxc4 {[%clk 0:00:51.6]} 28... b6 {[%clk 0:01:41.7]} 29. h4 {[%clk
0:00:44.1]} 29... Kd5 {[%clk 0:01:35.6]} 30. Rc1 {[%clk 0:00:43]} 30... Kc6
{[%clk 0:01:33.5]} 31. h5 {[%clk 0:00:40.4]} 31... Rd6 {[%clk 0:01:32.6]} 32. g4
{[%clk 0:00:37.6]} 32... fxg4 {[%clk 0:01:32.2]} 33. fxg4 {[%clk 0:00:38.5]}
33... b5 {[%clk 0:01:28.2]} 34. e4 {[%clk 0:00:32.6]} 34... Rf6 {[%clk
0:01:22.5]} 35. Ke3 {[%clk 0:00:32]} 35... a5 {[%clk 0:01:17.7]} 36. e5 {[%clk
0:00:31.3]} 36... Re6 {[%clk 0:01:12.4]} 37. Ke4 {[%clk 0:00:31.3]} 37... Re8
{[%clk 0:01:07]} 38. g5 {[%clk 0:00:25.4]} 38... Rd8 {[%clk 0:01:01.8]} 39. e6
{[%clk 0:00:22.9]} 39... Rd4+ {[%clk 0:00:56.4]} 40. Kf5 {[%clk 0:00:22.7]}
40... Kd6 {[%clk 0:00:48.8]} 41. Re1 {[%clk 0:00:17.6]} 41... Rd5+ {[%clk
0:00:46.3]} 42. Kf4 {[%clk 0:00:18.1]} 42... Ke7 {[%clk 0:00:45.1]} 43. Re3
{[%clk 0:00:18.2]} 43... h6 {[%clk 0:00:40.1]} 44. gxh6 {[%clk 0:00:15.6]} 44...
gxh6 {[%clk 0:00:40.1]} 45. Kg4 {[%clk 0:00:16.2]} 45... Rg5+ {[%clk 0:00:39.1]}
46. Kh4 {[%clk 0:00:16.7]} 46... Rg8 {[%clk 0:00:35.5]} 47. Kh3 {[%clk
0:00:14.2]} 47... Rg5 {[%clk 0:00:30.5]} 48. Kh4 {[%clk 0:00:14.5]} 48... Rg8
{[%clk 0:00:29.9]} 49. Re5 {[%clk 0:00:14.5]} 49... Kd6 {[%clk 0:00:26]} 50. Re3
{[%clk 0:00:13.2]} 50... Re8 {[%clk 0:00:23.2]} 51. Kg4 {[%clk 0:00:09]} 51...
Rxe6 {[%clk 0:00:22.8]} 52. Rd3+ {[%clk 0:00:09.6]} 52... Ke7 {[%clk 0:00:22.5]}
53. Kf5 {[%clk 0:00:10.1]} 53... Rf6+ {[%clk 0:00:22.4]} 54. Ke5 {[%clk
0:00:10.8]} 54... Re6+ {[%clk 0:00:19.1]} 55. Kf5 {[%clk 0:00:10.9]} 55... Rf6+
{[%clk 0:00:19.2]} 56. Ke5 {[%clk 0:00:11.4]} 56... Re6+ {[%clk 0:00:19.7]} 57.
Kf5 {[%clk 0:00:11.9]} 1/2-1/2

[Event "Early-Titled-Tuesday-Blitz-November-28-2023"]
[Site "Chess.com"]
[Date "2023.11.28"]
[Round "7"]
[White "FoxOnTheRun97"]
[Black "Byniolus"]
[Result "1-0"]
[WhiteElo "2586"]
[BlackElo "2788"]
[TimeControl "180+1"]
[EndTime "9:25:50 PST"]
[Termination "FoxOnTheRun97 won on time"]

1. d4 {[%clk 0:03:00.9]} 1... d6 {[%clk 0:02:59.9]} 2. c4 {[%clk 0:03:00.6]}
2... e5 {[%clk 0:02:59.6]} 3. g3 {[%clk 0:02:54.5]} 3... exd4 {[%clk 0:02:59.4]}
4. Qxd4 {[%clk 0:02:54.8]} 4... Nc6 {[%clk 0:02:59.8]} 5. Qe3+ {[%clk
0:02:51.1]} 5... Be7 {[%clk 0:02:58.3]} 6. Bg2 {[%clk 0:02:50.6]} 6... Nf6
{[%clk 0:02:59]} 7. b3 {[%clk 0:02:44.1]} 7... Ng4 {[%clk 0:02:55]} 8. Qd2
{[%clk 0:02:41.7]} 8... Bf6 {[%clk 0:02:43.5]} 9. Bb2 {[%clk 0:02:41.1]} 9...
O-O {[%clk 0:02:42.4]} 10. Nf3 {[%clk 0:02:39]} 10... Re8 {[%clk 0:02:38.7]} 11.
O-O {[%clk 0:02:38.1]} 11... Bf5 {[%clk 0:02:29.3]} 12. Nc3 {[%clk 0:02:35.1]}
12... h6 {[%clk 0:02:14.1]} 13. Rfe1 {[%clk 0:02:27.8]} 13... a5 {[%clk
0:02:06.7]} 14. Nd5 {[%clk 0:02:04.7]} 14... Bxb2 {[%clk 0:02:01.4]} 15. Qxb2
{[%clk 0:02:05.6]} 15... Be4 {[%clk 0:01:54.9]} 16. h3 {[%clk 0:01:50.6]} 16...
Nge5 {[%clk 0:01:42.3]} 17. Nxe5 {[%clk 0:01:48.9]} 17... Rxe5 {[%clk
0:01:43.2]} 18. e3 {[%clk 0:01:38]} 18... Qd7 {[%clk 0:01:28.7]} 19. Nf4 {[%clk
0:01:29.7]} 19... Bxg2 {[%clk 0:01:26.3]} 20. Kxg2 {[%clk 0:01:29.1]} 20... Nb4
{[%clk 0:01:13.3]} 21. Rad1 {[%clk 0:01:26.4]} 21... Qc6+ {[%clk 0:01:11.2]} 22.
Kg1 {[%clk 0:01:14.9]} 22... Na6 {[%clk 0:00:54.2]} 23. Rd5 {[%clk 0:01:12.2]}
23... Rae8 {[%clk 0:00:49.6]} 24. Red1 {[%clk 0:01:10.3]} 24... Nc5 {[%clk
0:00:46.4]} 25. Rxe5 {[%clk 0:01:08.5]} 25... dxe5 {[%clk 0:00:43.2]} 26. Nd3
{[%clk 0:00:55.1]} 26... Rd8 {[%clk 0:00:21.9]} 27. Qe2 {[%clk 0:00:55.3]} 27...
Nxd3 {[%clk 0:00:03.5]} 28. Rxd3 {[%clk 0:00:56.2]} 28... Rd6 {[%clk 0:00:03.3]}
29. Qd2 {[%clk 0:00:47.8]} 29... f6 {[%clk 0:00:02.1]} 30. Rxd6 {[%clk
0:00:44.7]} 30... Qxd6 {[%clk 0:00:03]} 31. Qxa5 {[%clk 0:00:44.9]} 31... Kh7
{[%clk 0:00:02.3]} 32. Qc3 {[%clk 0:00:43.2]} 32... h5 {[%clk 0:00:01.7]} 33.
Qc2+ {[%clk 0:00:42.3]} 33... g6 {[%clk 0:00:01.7]} 34. h4 {[%clk 0:00:41.8]}
34... Qe6 {[%clk 0:00:01.4]} 35. Qe4 {[%clk 0:00:40.4]} 35... c6 {[%clk
0:00:01.2]} 36. Qd3 {[%clk 0:00:37.2]} 36... Kh6 {[%clk 0:00:01.6]} 37. Qd8
{[%clk 0:00:36.8]} 37... Kh7 {[%clk 0:00:01.4]} 38. Qc7+ {[%clk 0:00:35.2]}
38... Kh6 {[%clk 0:00:02.1]} 39. Qxb7 {[%clk 0:00:34.8]} 39... Qd6 {[%clk
0:00:02.4]} 40. Qc8 {[%clk 0:00:30.8]} 40... g5 {[%clk 0:00:01.6]} 41. Qh8+
{[%clk 0:00:26]} 41... Kg6 {[%clk 0:00:01.7]} 42. Qe8+ {[%clk 0:00:26]} 42...
Kh6 {[%clk 0:00:01.4]} 43. hxg5+ {[%clk 0:00:19.3]} 43... fxg5 {[%clk
0:00:02.3]} 44. Kg2 {[%clk 0:00:19.8]} 44... g4 {[%clk 0:00:02.8]} 45. Qf7
{[%clk 0:00:17.5]} 45... c5 {[%clk 0:00:01.9]} 46. Qf5 {[%clk 0:00:15.9]} 46...
Qc6+ {[%clk 0:00:01.7]} 47. e4 {[%clk 0:00:15.9]} 47... Qd6 {[%clk 0:00:02.3]}
48. a4 {[%clk 0:00:15.3]} 48... Qd3 {[%clk 0:00:02.3]} 49. a5 {[%clk 0:00:10]}
49... Qxb3 {[%clk 0:00:02.6]} 50. a6 {[%clk 0:00:09.7]} 50... Qa2 {[%clk
0:00:02.6]} 51. Qf6+ {[%clk 0:00:08]} 51... Kh7 {[%clk 0:00:03.2]} 52. Qe7+
{[%clk 0:00:07.8]} 52... Kh6 {[%clk 0:00:03.6]} 53. Qd6+ {[%clk 0:00:07.6]}
53... Kh7 {[%clk 0:00:04.2]} 54. Qc7+ {[%clk 0:00:07.5]} 54... Kh6 {[%clk
0:00:04.8]} 55. a7 {[%clk 0:00:07.5]} 1-0

[Event "Early-Titled-Tuesday-Blitz-November-28-2023"]
[Site "Chess.com"]
[Date "2023.11.28"]
[Round "7"]
[White "sergiochess83"]
[Black "luckyswitchback"]
[Result "0-1"]
[WhiteElo "2877"]
[BlackElo "2798"]
[TimeControl "180+1"]
[EndTime "9:25:53 PST"]
[Termination "luckyswitchback won on time"]

1. d4 {[%clk 0:03:00.1]} 1... Nf6 {[%clk 0:03:00]} 2. c4 {[%clk 0:02:56.5]} 2...
e6 {[%clk 0:03:00.3]} 3. g3 {[%clk 0:02:57.1]} 3... d5 {[%clk 0:03:00.1]} 4. Bg2
{[%clk 0:02:57.1]} 4... dxc4 {[%clk 0:02:59.1]} 5. Nf3 {[%clk 0:02:56.5]} 5...
a6 {[%clk 0:02:59.1]} 6. O-O {[%clk 0:02:55.3]} 6... Nc6 {[%clk 0:02:59.4]} 7.
Bg5 {[%clk 0:02:52.7]} 7... Be7 {[%clk 0:02:58.1]} 8. e3 {[%clk 0:02:50.2]} 8...
Bd7 {[%clk 0:02:58.3]} 9. Nfd2 {[%clk 0:02:42.2]} 9... b5 {[%clk 0:02:57]} 10.
b3 {[%clk 0:02:42]} 10... cxb3 {[%clk 0:02:51.9]} 11. Nxb3 {[%clk 0:02:42.9]}
11... Rb8 {[%clk 0:02:35.6]} 12. N1d2 {[%clk 0:02:42.9]} 12... h6 {[%clk
0:02:27.8]} 13. Bxf6 {[%clk 0:02:42.4]} 13... gxf6 {[%clk 0:02:28.7]} 14. Qh5
{[%clk 0:02:38.4]} 14... Rb6 {[%clk 0:02:06.7]} 15. Ne4 {[%clk 0:02:35.2]} 15...
a5 {[%clk 0:01:58]} 16. Rfc1 {[%clk 0:02:31.4]} 16... a4 {[%clk 0:01:46.2]} 17.
Nbc5 {[%clk 0:02:31.3]} 17... Bc8 {[%clk 0:01:46.6]} 18. Rab1 {[%clk 0:02:27.2]}
18... f5 {[%clk 0:01:43.4]} 19. Nc3 {[%clk 0:02:23.5]} 19... Na7 {[%clk
0:01:40.2]} 20. Nxb5 {[%clk 0:02:08.2]} 20... Nxb5 {[%clk 0:01:34]} 21. Rxb5
{[%clk 0:02:07.5]} 21... Rxb5 {[%clk 0:01:23.9]} 22. Bc6+ {[%clk 0:02:07.6]}
22... Kf8 {[%clk 0:01:24.6]} 23. Bxb5 {[%clk 0:02:07.8]} 23... a3 {[%clk
0:01:23.6]} 24. Qf3 {[%clk 0:01:45.6]} 24... Kg7 {[%clk 0:01:21.3]} 25. Qa8
{[%clk 0:01:41.7]} 25... h5 {[%clk 0:01:06.3]} 26. Qxa3 {[%clk 0:01:30.9]} 26...
h4 {[%clk 0:01:05.9]} 27. Bc6 {[%clk 0:01:30.7]} 27... hxg3 {[%clk 0:01:04.8]}
28. hxg3 {[%clk 0:01:30.9]} 28... Bd6 {[%clk 0:00:45.2]} 29. Bg2 {[%clk
0:01:24.6]} 29... e5 {[%clk 0:00:38.6]} 30. dxe5 {[%clk 0:01:17.7]} 30... Bxe5
{[%clk 0:00:39.5]} 31. Nd3 {[%clk 0:01:17.9]} 31... Bf6 {[%clk 0:00:38.5]} 32.
Nf4 {[%clk 0:01:17.3]} 32... Qd2 {[%clk 0:00:31]} 33. Qc5 {[%clk 0:01:06.6]}
33... Ba6 {[%clk 0:00:21.5]} 34. Bf3 {[%clk 0:00:57.1]} 34... Rh6 {[%clk
0:00:08.5]} 35. Qxc7 {[%clk 0:00:53]} 35... Bg5 {[%clk 0:00:06.2]} 36. Qc3+
{[%clk 0:00:50.7]} 36... Qxc3 {[%clk 0:00:06.2]} 37. Rxc3 {[%clk 0:00:51.6]}
37... Rb6 {[%clk 0:00:05.5]} 38. Rb3 {[%clk 0:00:42]} 38... Rd6 {[%clk
0:00:05.2]} 39. Rb2 {[%clk 0:00:33.4]} 39... Bc4 {[%clk 0:00:04.3]} 40. Be2
{[%clk 0:00:27.7]} 40... Be6 {[%clk 0:00:02.6]} 41. a4 {[%clk 0:00:21]} 41...
Rc6 {[%clk 0:00:02.8]} 42. Nxe6+ {[%clk 0:00:13.4]} 42... fxe6 {[%clk
0:00:03.7]} 43. Ra2 {[%clk 0:00:12.8]} 43... Rc1+ {[%clk 0:00:01.7]} 44. Kg2
{[%clk 0:00:13.2]} 44... Be7 {[%clk 0:00:01.5]} 45. a5 {[%clk 0:00:13.3]} 45...
Bc5 {[%clk 0:00:02.2]} 46. a6 {[%clk 0:00:13.7]} 46... Ba7 {[%clk 0:00:03.1]}
47. Rb2 {[%clk 0:00:13.8]} 47... Rc7 {[%clk 0:00:03.3]} 48. Rb7 {[%clk
0:00:11.3]} 48... Rxb7 {[%clk 0:00:03.5]} 49. axb7 {[%clk 0:00:12.2]} 49... Kf6
{[%clk 0:00:04.4]} 50. f4 {[%clk 0:00:05.5]} 50... e5 {[%clk 0:00:03.1]} 0-1

[Event "Early-Titled-Tuesday-Blitz-November-28-2023"]
[Site "Chess.com"]
[Date "2023.11.28"]
[Round "7"]
[White "LaPiToB"]
[Black "Khromkin"]
[Result "0-1"]
[WhiteElo "2274"]
[BlackElo "2479"]
[TimeControl "180+1"]
[EndTime "9:25:54 PST"]
[Termination "Khromkin won by resignation"]

1. d4 {[%clk 0:03:00.9]} 1... d5 {[%clk 0:02:59.6]} 2. c4 {[%clk 0:02:59]} 2...
dxc4 {[%clk 0:03:00.2]} 3. e3 {[%clk 0:02:56.3]} 3... e5 {[%clk 0:03:00.3]} 4.
Bxc4 {[%clk 0:02:55.3]} 4... exd4 {[%clk 0:03:01.2]} 5. exd4 {[%clk 0:02:55.3]}
5... Bd6 {[%clk 0:03:01.7]} 6. Nf3 {[%clk 0:02:54.7]} 6... Nf6 {[%clk
0:03:02.3]} 7. O-O {[%clk 0:02:54.3]} 7... O-O {[%clk 0:03:02.8]} 8. Nc3 {[%clk
0:02:53.5]} 8... Nc6 {[%clk 0:03:02.7]} 9. Re1 {[%clk 0:02:51.9]} 9... Re8
{[%clk 0:02:56.8]} 10. Rxe8+ {[%clk 0:02:45.6]} 10... Qxe8 {[%clk 0:02:56.3]}
11. Ng5 {[%clk 0:02:41.4]} 11... Nd8 {[%clk 0:02:44.8]} 12. Bd2 {[%clk
0:02:29.7]} 12... h6 {[%clk 0:02:43.2]} 13. Nf3 {[%clk 0:02:27.5]} 13... Bg4
{[%clk 0:02:42.8]} 14. h3 {[%clk 0:02:25.8]} 14... Bh5 {[%clk 0:02:41.1]} 15.
Be2 {[%clk 0:02:15.8]} 15... Ne6 {[%clk 0:02:41]} 16. Be3 {[%clk 0:02:11.7]}
16... Nf4 {[%clk 0:02:39.1]} 17. Bf1 {[%clk 0:01:57.2]} 17... N6d5 {[%clk
0:02:31.4]} 18. Nxd5 {[%clk 0:01:55.3]} 18... Nxd5 {[%clk 0:02:31.3]} 19. Bd2
{[%clk 0:01:42]} 19... Rd8 {[%clk 0:02:26]} 20. Qb3 {[%clk 0:01:38.3]} 20... b6
{[%clk 0:02:04.6]} 21. Re1 {[%clk 0:01:34]} 21... Qf8 {[%clk 0:01:49.9]} 22. Bc4
{[%clk 0:01:25.4]} 22... Nf4 {[%clk 0:01:39]} 23. Ne5 {[%clk 0:01:22.9]} 23...
Bxe5 {[%clk 0:01:19.2]} 24. Rxe5 {[%clk 0:01:21.1]} 24... Rxd4 {[%clk
0:01:14.8]} 25. Bxf4 {[%clk 0:01:19.7]} 25... Rxf4 {[%clk 0:01:12.1]} 26. Rxh5
{[%clk 0:01:19.7]} 26... g5 {[%clk 0:01:00.2]} 27. g3 {[%clk 0:01:13.2]} 27...
Rf6 {[%clk 0:00:55.3]} 28. Qc3 {[%clk 0:01:06.6]} 28... Qd6 {[%clk 0:00:47.4]}
29. Bf1 {[%clk 0:00:55.2]} 29... Kg7 {[%clk 0:00:20.6]} 30. Bg2 {[%clk
0:00:33.5]} 30... Qd1+ {[%clk 0:00:19.6]} 31. Kh2 {[%clk 0:00:25.4]} 31... Qxh5
{[%clk 0:00:20.1]} 32. g4 {[%clk 0:00:22.4]} 32... Qh4 {[%clk 0:00:19.5]} 33. f3
{[%clk 0:00:16.1]} 33... Qf2 {[%clk 0:00:18.8]} 34. Qe5 {[%clk 0:00:15]} 34...
Qc5 {[%clk 0:00:16.8]} 35. Qe2 {[%clk 0:00:12.1]} 35... Qd6+ {[%clk 0:00:17]}
36. Kg1 {[%clk 0:00:11.6]} 36... Re6 {[%clk 0:00:17.5]} 37. Qc2 {[%clk
0:00:10.7]} 37... Qe5 {[%clk 0:00:16.4]} 38. Bf1 {[%clk 0:00:07.3]} 38... c5
{[%clk 0:00:14.7]} 39. Bc4 {[%clk 0:00:06.9]} 39... Qd4+ {[%clk 0:00:14.5]} 40.
Kg2 {[%clk 0:00:05.7]} 40... Re3 {[%clk 0:00:12.6]} 41. Be2 {[%clk 0:00:05.1]}
41... b5 {[%clk 0:00:07.8]} 42. Kf1 {[%clk 0:00:04.4]} 42... Qe5 {[%clk
0:00:07.7]} 43. Kf2 {[%clk 0:00:04.2]} 43... c4 {[%clk 0:00:06.4]} 44. a3 {[%clk
0:00:04]} 44... a5 {[%clk 0:00:03.3]} 45. Kf1 {[%clk 0:00:04.4]} 45... Rxe2
{[%clk 0:00:03.2]} 46. Qxe2 {[%clk 0:00:04.2]} 46... Qxe2+ {[%clk 0:00:04.1]}
47. Kxe2 {[%clk 0:00:05.1]} 47... Kf6 {[%clk 0:00:04.8]} 48. Ke3 {[%clk
0:00:05.6]} 48... Ke5 {[%clk 0:00:05.4]} 49. Kd2 {[%clk 0:00:05.1]} 49... b4
{[%clk 0:00:06.1]} 50. a4 {[%clk 0:00:04.7]} 50... Kd4 {[%clk 0:00:05.6]} 51.
Ke2 {[%clk 0:00:04.7]} 51... c3 {[%clk 0:00:06]} 52. bxc3+ {[%clk 0:00:04.7]}
52... bxc3 {[%clk 0:00:06.2]} 53. Kd1 {[%clk 0:00:05.6]} 53... Kd3 {[%clk
0:00:06.4]} 54. Kc1 {[%clk 0:00:06]} 54... c2 {[%clk 0:00:06.7]} 0-1